[Event "WTCC-50 2018"]
[Site "Radebeul"]
[Date "2018.07.13"]
[Round "7"]
[White "Titscher, Libor"]
[Black "Pruefer, Friedbert"]
[Result "1/2-1/2"]
[ECO "A16"]
[WhiteElo "2306"]
[BlackElo "2172"]
[Annotator "NA"]
[PlyCount "62"]
[EventDate "2018.07.07"]
[EventType "team-tourn"]
[EventCountry "GER"]
[SourceTitle "playchess.com"]
[Source "ChessBase"]
[SourceQuality "1"]
[TimeControl "40/5400+30:1800+30"]

1. c4 {[%emt 0:00:00]} Nf6 {[%emt 0:00:00]} 2. Nc3 {[%emt 0:00:00]} d5 {[%emt 0:00:00]} 3. cxd5 {[%emt 0:00:02]} Nxd5 {[%emt 0:00:00]} 4. g3 {[%emt 0:00:10]} g6 {[%emt 0:00:19]} 5. Bg2 {[%emt 0:00:06]} Nb6 {[%emt 0:00:10]} 6. Nf3 {[%emt 0:00:07]} Bg7 {[%emt 0:00:09]} 7. O-O {[%emt 0:00:12]} O-O {[%emt 0:00:18]} 8. d3 {[%emt 0:00:06]} Nc6 {[%emt 0:00:37]} 9. Be3 {[%emt 0:00:06]} a5 {[%emt 0:05:21]} 10. Qc1 {[%emt 0:08:11]} Re8 {[%emt 0:03:55]} 11. Ng5 {[%emt 0:02:43]} Nd4 {[%emt 0:18:47]} 12. Re1 {[%emt 0:07:41]} c6 {[%emt 0:04:30]} 13. h3 {[%emt 0:05:03]} a4 {[%emt 0:01:55]} 14. Kh2 {[%emt 0:06:03]} Ra5 {[%emt 0:05:03]} 15. f4 {[%emt 0:03:25]} a3 {[%emt 0:14:22]} 16. b4 {[%emt 0:02:53]} Ra8 {[%emt 0:00:17]} 17. Rb1 {[%emt 0:02:22]} h6 {[%emt 0:05:15]} 18. Nf3 {[%emt 0:16:07]} Nxf3+ {[%emt 0:01:06]} 19. Bxf3 {[%emt 0:00:14]} Be6 {[%emt 0:02:01]} 20. b5 {[%emt 0:06:11]} Nd5 {[%emt 0:01:25]} 21. Nxd5 {[%emt 0:00:19]} cxd5 {[%emt 0:03:28]} 22. d4 {[%emt 0:09:17]} Qd7 {[%emt 0:01:26]} 23. g4 {[%emt 0:05:36]} Rec8 {[%emt 0:01:13]} 24. Qd2 {[%emt 0:00:31]} Rc4 {[%emt 0:04:18]} 25. Rec1 {[%emt 0:02:35]} Raa4 {[%emt 0:03:04]} 26. Rxc4 {[%emt 0:01:26]} Rxc4 {[%emt 0:00:37]} 27. Qa5 {[%emt 0:01:16]} Bxd4 {[%emt 0:02:03]} 28. Qxa3 {[%emt 0:01:25]} Rc3 29. Qb2 Rc4 30. Qa3 Bxe3 31. Qxe3 Qd6 1/2-1/2

[Event "WTCC-50 2018"]
[Site "Radebeul"]
[Date "2018.07.13"]
[Round "7"]
[White "Fritsche, Lutz"]
[Black "Jhunjhnuwala, Krishan"]
[Result "1/2-1/2"]
[ECO "B24"]
[WhiteElo "2303"]
[BlackElo "2340"]
[Annotator "NA"]
[PlyCount "47"]
[EventDate "2018.07.07"]
[EventType "team-tourn"]
[EventCountry "GER"]
[SourceTitle "playchess.com"]
[Source "ChessBase"]
[SourceQuality "1"]
[TimeControl "40/5400+30:1800+30"]

1. e4 {[%emt 0:00:13]} c5 {[%emt 0:00:00]} 2. Nc3 {[%emt 0:00:20]} Nc6 {[%emt 0:00:05]} 3. g3 {[%emt 0:00:22]} Nf6 {[%emt 0:01:16]} 4. Bg2 {[%emt 0:00:12]} d6 {[%emt 0:01:25]} 5. d3 {[%emt 0:01:28]} g6 {[%emt 0:00:39]} 6. Nf3 {[%emt 0:01:35]} Bg7 {[%emt 0:00:38]} 7. O-O {[%emt 0:00:10]} O-O {[%emt 0:00:25]} 8. Nd5 {[%emt 0:00:43]} Bg4 {[%emt 0:03:00]} 9. h3 {[%emt 0:04:34]} Bd7 {[%emt 0:01:12]} 10. c3 {[%emt 0:03:15]} Rb8 {[%emt 0:03:50]} 11. Bg5 {[%emt 0:05:02]} e6 {[%emt 0:06:55]} 12. Nxf6+ {[%emt 0:04:06]} Bxf6 {[%emt 0:00:12]} 13. Be3 {[%emt 0:00:32]} Bg7 {[%emt 0:04:43]} 14. d4 {[%emt 0:00:41]} b6 {[%emt 0:09:29]} 15. d5 {[%emt 0:22:04]} exd5 {[%emt 0:07:01]} 16. Qxd5 {[%emt 0:00:47]} Ne5 {[%emt 0:01:35]} 17. Nh2 {[%emt 0:05:09]} Bc6 {[%emt 0:03:19]} 18. Qb3 {[%emt 0:07:55]} Qe7 {[%emt 0:02:30]} 19. Rad1 {[%emt 0:06:40]} b5 {[%emt 0:05:21]} 20. Bf4 {[%emt 0:05:45]} Rfd8 {[%emt 0:04:48]} 21. Qc2 {[%emt 0:01:02]} c4 {[%emt 0:02:49]} 22. Bxe5 {[%emt 0:01:37]} dxe5 {[%emt 0:02:57]} 23. Ng4 {[%emt 0:00:32]} Rxd1 {[%emt 0:02:52]} 24. Rxd1 1/2-1/2

[Event "WTCC-50 2018"]
[Site "Radebeul"]
[Date "2018.07.13"]
[Round "7"]
[White "Weitzer, Steffen"]
[Black "Lewis, Andrew P"]
[Result "1-0"]
[ECO "A48"]
[WhiteElo "2288"]
[BlackElo "2298"]
[Annotator "NA"]
[PlyCount "61"]
[EventDate "2018.07.07"]
[EventType "team-tourn"]
[EventCountry "GER"]
[SourceTitle "playchess.com"]
[Source "ChessBase"]
[SourceQuality "1"]
[TimeControl "40/5400+30:1800+30"]

1. d4 {[%emt 0:00:00]} Nf6 {[%emt 0:00:00]} 2. Nf3 {[%emt 0:00:00]} g6 {[%emt 0:00:07]} 3. Bf4 {[%emt 0:00:00]} Bg7 {[%emt 0:00:12]} 4. e3 {[%emt 0:00:00]} O-O {[%emt 0:00:18]} 5. c3 {[%emt 0:00:03]} d6 {[%emt 0:00:15]} 6. h3 {[%emt 0:00:05]} c5 {[%emt 0:00:41]} 7. Be2 {[%emt 0:03:05]} b6 {[%emt 0:03:30]} 8. a4 {[%emt 0:00:27]} a6 {[%emt 0:03:55]} 9. O-O {[%emt 0:02:26]} Bb7 {[%emt 0:00:20]} 10. Re1 {[%emt 0:00:25]} Nc6 {[%emt 0:06:25]} 11. Na3 {[%emt 0:02:49]} cxd4 {[%emt 0:05:08]} 12. exd4 {[%emt 0:00:46]} Rc8 {[%emt 0:11:23]} 13. Bc4 {[%emt 0:11:20]} Na5 {[%emt 0:10:56]} 14. Bd3 {[%emt 0:03:43]} Re8 {[%emt 0:01:29]} 15. Bh2 {[%emt 0:04:42]} d5 {[%emt 0:07:15]} 16. Ne5 {[%emt 0:02:39]} Ne4 {[%emt 0:01:56]} 17. f3 {[%emt 0:10:32]} Nd6 {[%emt 0:03:48]} 18. Qe2 {[%emt 0:01:49]} f6 {[%emt 0:18:56]} 19. Nxg6 {[%emt 0:05:53]} hxg6 {[%emt 0:06:33]} 20. Bxg6 {[%emt 0:06:41]} e6 {[%emt 0:07:29]} 21. Bxe8 {[%emt 0:02:53]} Nxe8 {[%emt 0:00:09]} 22. Qxe6+ {[%emt 0:00:12]} Kf8 {[%emt 0:00:21]} 23. Re2 {[%emt 0:05:06]} Bc6 {[%emt 0:02:55]} 24. Nc2 {[%emt 0:01:30]} Nc4 {[%emt 0:03:54]} 25. Nb4 {[%emt 0:01:55]} Bb7 {[%emt 0:02:14]} 26. Rae1 {[%emt 0:01:02]} a5 {[%emt 0:00:27]} 27. Nd3 {[%emt 0:00:20]} Bc6 {[%emt 0:00:50]} 28. Nf4 {[%emt 0:00:20]} Bh6 {[%emt 0:00:17]} 29. Ng6+ {[%emt 0:00:40]} Kg7 {[%emt 0:00:09]} 30. Ne7 {[%emt 0:00:15]} Bd7 {[%emt 0:02:06]} 31. Qg8# {[%emt 0:00:03] Kxg8} 1-0

[Event "WTCC-50 2018"]
[Site "Radebeul"]
[Date "2018.07.13"]
[Round "7"]
[White "Schunk, Thomas"]
[Black "Schweitzer, Andreas"]
[Result "0-1"]
[ECO "A13"]
[WhiteElo "2238"]
[BlackElo "2239"]
[Annotator "NA"]
[PlyCount "93"]
[EventDate "2018.07.07"]
[EventType "team-tourn"]
[EventCountry "GER"]
[SourceTitle "playchess.com"]
[Source "ChessBase"]
[SourceQuality "1"]
[TimeControl "40/5400+30:1800+30"]

1. c4 {[%emt 0:00:00]} e6 {[%emt 0:00:00]} 2. g3 {[%emt 0:00:00]} d5 {[%emt 0:00:00]} 3. Bg2 {[%emt 0:00:00]} Nf6 {[%emt 0:00:44]} 4. Qc2 {[%emt 0:00:10]} c5 {[%emt 0:02:01]} 5. cxd5 {[%emt 0:00:29]} exd5 {[%emt 0:01:19]} 6. Nf3 {[%emt 0:00:09]} Nc6 {[%emt 0:01:04]} 7. O-O {[%emt 0:00:10]} Be7 {[%emt 0:01:50]} 8. d3 {[%emt 0:00:27]} O-O {[%emt 0:03:13]} 9. Bg5 {[%emt 0:00:21]} h6 {[%emt 0:07:48]} 10. Bf4 {[%emt 0:05:24]} Be6 {[%emt 0:04:58]} 11. Nc3 {[%emt 0:00:36]} Rc8 {[%emt 0:06:51]} 12. a3 {[%emt 0:13:28]} d4 {[%emt 0:05:23]} 13. Nd1 {[%emt 0:05:17]} Na5 {[%emt 0:02:15]} 14. Ne5 {[%emt 0:02:28]} b5 {[%emt 0:12:13]} 15. Rc1 {[%emt 0:03:07]} Qb6 {[%emt 0:03:10]} 16. Qb1 {[%emt 0:06:28]} Nb3 {[%emt 0:02:17]} 17. Rc2 {[%emt 0:00:05]} Rfd8 {[%emt 0:01:51]} 18. h3 {[%emt 0:00:39]} Bd6 {[%emt 0:07:03]} 19. Nf3 {[%emt 0:01:51]} Bxf4 {[%emt 0:01:40]} 20. gxf4 {[%emt 0:00:05]} Nd5 {[%emt 0:02:44]} 21. e3 {[%emt 0:01:10]} c4 {[%emt 0:02:05]} 22. Kh1 {[%emt 0:02:30]} dxe3 {[%emt 0:01:19]} 23. fxe3 {[%emt 0:02:59]} Nxe3 {[%emt 0:00:24]} 24. Nxe3 {[%emt 0:02:33]} Qxe3 {[%emt 0:00:03]} 25. Rc3 {[%emt 0:00:22]} Rxd3 {[%emt 0:04:20]} 26. Re1 {[%emt 0:01:42]} Rxc3 {[%emt 0:09:02]} 27. Rxe3 {[%emt 0:02:57]} Rc1+ {[%emt 0:01:12]} 28. Qxc1 {[%emt 0:00:14]} Nxc1 {[%emt 0:00:02]} 29. Nd4 {[%emt 0:00:11]} Bd7 {[%emt 0:04:31]} 30. Bb7 {[%emt 0:04:29]} Re8 {[%emt 0:02:48]} 31. Rxe8+ {[%emt 0:06:19]} Bxe8 {[%emt 0:00:01]} 32. Ba6 {[%emt 0:00:06]} Nd3 {[%emt 0:00:29]} 33. Bxb5 {[%emt 0:00:53]} Bxb5 {[%emt 0:00:35]} 34. Nxb5 {[%emt 0:00:25]} Nxb2 {[%emt 0:01:48]} 35. Kg2 {[%emt 0:00:40]} a6 {[%emt 0:04:34]} 36. Nc3 {[%emt 0:00:33]} f5 {[%emt 0:01:16]} 37. Kf3 {[%emt 0:00:34]} Kf7 {[%emt 0:00:36]} 38. Ke3 {[%emt 0:00:43]} g5 {[%emt 0:01:25]} 39. Nd5 {[%emt 0:01:45]} g4 {[%emt 0:00:56]} 40. h4 {[%emt 0:00:44]} Na4 {[%emt 0:01:06]} 41. Kd4 {[%emt 0:30:53]} c3 {[%emt 0:06:09]} 42. Ne3 {[%emt 0:00:00]} g3 {[%emt 0:03:35]} 43. Kd3 {[%emt 0:00:00]} Kg6 {[%emt 0:03:42]} 44. Kc2 {[%emt 0:00:00]} Nb6 {[%emt 0:09:06]} 45. Kxc3 {[%emt 0:00:00]} Nd5+ {[%emt 0:00:15]} 46. Nxd5 {[%emt 0:00:00]} g2 {[%emt 0:00:11]} 47. Ne7+ {[%emt 0:00:00]} 0-1

[Event "WTCC-50 2018"]
[Site "Radebeul"]
[Date "2018.07.13"]
[Round "7"]
[White "Kempter, Ronald"]
[Black "Schmidt, Reiner"]
[Result "1/2-1/2"]
[ECO "E68"]
[WhiteElo "2233"]
[BlackElo "2185"]
[Annotator "NA"]
[PlyCount "84"]
[EventDate "2018.07.07"]
[EventType "team-tourn"]
[EventCountry "GER"]
[SourceTitle "playchess.com"]
[Source "ChessBase"]
[SourceQuality "1"]
[TimeControl "40/5400+30:1800+30"]

1. Nf3 {[%emt 0:00:00]} g6 {[%emt 0:00:00]} 2. g3 {[%emt 0:00:00]} Bg7 {[%emt 0:00:00]} 3. d4 {[%emt 0:00:09]} Nf6 {[%emt 0:00:22]} 4. Bg2 {[%emt 0:00:07]} O-O {[%emt 0:00:13]} 5. c4 {[%emt 0:01:08]} d6 {[%emt 0:00:08]} 6. O-O {[%emt 0:00:23]} Nbd7 {[%emt 0:00:26]} 7. Nc3 {[%emt 0:05:27]} e5 {[%emt 0:00:18]} 8. e4 {[%emt 0:00:54]} exd4 {[%emt 0:00:26]} 9. Nxd4 {[%emt 0:00:20]} Re8 {[%emt 0:00:23]} 10. h3 {[%emt 0:03:10]} a6 {[%emt 0:01:07]} 11. Re1 {[%emt 0:04:53]} Rb8 {[%emt 0:00:36]} 12. Bf4 {[%emt 0:06:34]} Nh5 {[%emt 0:16:58]} 13. Be3 {[%emt 0:03:45]} Ne5 {[%emt 0:10:00]} 14. b3 {[%emt 0:05:39]} Bd7 {[%emt 0:01:26]} 15. Rc1 {[%emt 0:03:40]} Qc8 {[%emt 0:02:35]} 16. Kh2 {[%emt 0:05:35]} Nf6 {[%emt 0:05:56]} 17. Nd5 {[%emt 0:10:18]} b6 {[%emt 0:15:25]} 18. Bg5 {[%emt 0:06:42]} Nxd5 {[%emt 0:19:48]} 19. cxd5 {[%emt 0:04:27]} h6 {[%emt 0:02:12]} 20. Be3 {[%emt 0:04:11]} g5 {[%emt 0:00:42]} 21. Qc2 {[%emt 0:08:35]} Rb7 {[%emt 0:02:51]} 22. Rg1 {[%emt 0:11:19]} g4 {[%emt 0:05:02]} 23. h4 {[%emt 0:00:15]} Qd8 {[%emt 0:00:47]} 24. Rgd1 {[%emt 0:02:18]} Qf6 {[%emt 0:01:07]} 25. Qe2 {[%emt 0:01:40]} Nf3+ {[%emt 0:05:22]} 26. Nxf3 {[%emt 0:04:48]} Bb5 {[%emt 0:00:51]} 27. Qc2 {[%emt 0:00:42]} gxf3 {[%emt 0:01:27]} 28. Bd4 {[%emt 0:00:31]} Qg6 {[%emt 0:01:37]} 29. Bxf3 {[%emt 0:01:17]} Bxd4 {[%emt 0:00:21]} 30. Rxd4 {[%emt 0:00:07]} Qf6 {[%emt 0:00:12]} 31. Qd1 {[%emt 0:01:17]} Kh8 {[%emt 0:03:07]} 32. Rd2 {[%emt 0:01:04]} a5 {[%emt 0:01:27]} 33. Bg2 {[%emt 0:00:34]} Re7 {[%emt 0:00:33]} 34. Rdc2 {[%emt 0:01:04]} Qg7 {[%emt 0:01:28]} 35. Qd2 {[%emt 0:00:43]} f6 {[%emt 0:01:00]} 36. Rc3 {[%emt 0:01:00]} Be8 {[%emt 0:00:15]} 37. Qd3 {[%emt 0:01:57]} Ra7 {[%emt 0:00:29]} 38. Qd4 {[%emt 0:00:31]} Bg6 {[%emt 0:00:17]} 39. Re3 {[%emt 0:01:05]} Ra8 {[%emt 0:00:12]} 40. Rce1 {[%emt 0:01:07]} Rae8 {[%emt 0:00:29]} 41. Bh3 {[%emt 0:03:35]} Kg8 {[%emt 0:05:45]} 42. g4 {[%emt 0:08:34]} Qh7 {[%emt 0:05:05]} 1/2-1/2

[Event "WTCC-50 2018"]
[Site "Radebeul"]
[Date "2018.07.13"]
[Round "7"]
[White "Bruch, Jochen"]
[Black "Grawe, Christian"]
[Result "1/2-1/2"]
[ECO "A06"]
[WhiteElo "2222"]
[BlackElo "2231"]
[Annotator "NA"]
[PlyCount "37"]
[EventDate "2018.07.07"]
[EventType "team-tourn"]
[EventCountry "GER"]
[SourceTitle "playchess.com"]
[Source "ChessBase"]
[SourceQuality "1"]
[TimeControl "40/5400+30:1800+30"]

1. Nf3 {[%emt 0:00:00]} d5 {[%emt 0:00:02]} 2. g3 {[%emt 0:00:00]} Bg4 {[%emt 0:00:14]} 3. Bg2 {[%emt 0:00:00]} Nd7 {[%emt 0:00:14]} 4. O-O {[%emt 0:00:00]} c6 {[%emt 0:00:18]} 5. d3 {[%emt 0:00:00]} Ngf6 {[%emt 0:00:22]} 6. Nbd2 {[%emt 0:00:05]} e5 {[%emt 0:00:30]} 7. e4 {[%emt 0:00:21]} dxe4 {[%emt 0:00:07]} 8. dxe4 {[%emt 0:00:02]} Bc5 {[%emt 0:00:26]} 9. c3 {[%emt 0:01:09]} a5 {[%emt 0:04:56]} 10. a4 {[%emt 0:03:30]} O-O {[%emt 0:00:40]} 11. Qc2 {[%emt 0:00:09]} Re8 {[%emt 0:01:00]} 12. Nc4 {[%emt 0:01:52]} Qc7 {[%emt 0:00:59]} 13. Bd2 {[%emt 0:05:45]} b5 {[%emt 0:12:32]} 14. Ne3 {[%emt 0:13:54]} Bxe3 {[%emt 0:05:29]} 15. Bxe3 {[%emt 0:01:40]} Nb6 {[%emt 0:00:19]} 16. axb5 {[%emt 0:06:36]} cxb5 {[%emt 0:00:46]} 17. Nd2 {[%emt 0:01:18]} Be6 {[%emt 0:11:17]} 18. f3 {[%emt 0:03:38]} Nfd7 {[%emt 0:07:55]} 19. Rfc1 {[%emt 0:02:04]} 1/2-1/2

[Event "WTCC-50 2018"]
[Site "Radebeul"]
[Date "2018.07.13"]
[Round "7"]
[White "Teo, Kok Siong"]
[Black "Obers, Frits"]
[Result "0-1"]
[ECO "A62"]
[WhiteElo "2213"]
[BlackElo "2113"]
[Annotator "NA"]
[PlyCount "52"]
[EventDate "2018.07.07"]
[EventType "team-tourn"]
[EventCountry "GER"]
[SourceTitle "playchess.com"]
[Source "ChessBase"]
[SourceQuality "1"]
[TimeControl "40/5400+30:1800+30"]

1. d4 {[%emt 0:00:00]} Nf6 {[%emt 0:00:00]} 2. c4 {[%emt 0:00:07]} c5 {[%emt 0:00:01]} 3. d5 {[%emt 0:02:14]} e6 {[%emt 0:00:05]} 4. Nc3 {[%emt 0:00:23]} exd5 {[%emt 0:00:06]} 5. cxd5 {[%emt 0:00:08]} d6 {[%emt 0:00:02]} 6. g3 {[%emt 0:01:02]} g6 {[%emt 0:00:10]} 7. Bg2 {[%emt 0:00:20]} Bg7 {[%emt 0:00:05]} 8. Nf3 {[%emt 0:00:29]} O-O {[%emt 0:00:05]} 9. O-O {[%emt 0:00:12]} a6 {[%emt 0:00:08]} 10. a4 {[%emt 0:00:16]} Nbd7 {[%emt 0:01:10]} 11. h3 {[%emt 0:01:41]} Re8 {[%emt 0:00:13]} 12. Nd2 {[%emt 0:01:11]} Rb8 {[%emt 0:00:09]} 13. Nc4 {[%emt 0:01:15]} Ne5 {[%emt 0:00:10]} 14. Na3 {[%emt 0:04:03]} Nh5 {[%emt 0:00:12]} 15. Kh2 {[%emt 0:02:20]} f5 {[%emt 0:01:35]} 16. f4 {[%emt 0:16:59]} Nf7 {[%emt 0:00:06]} 17. Qd3 {[%emt 0:05:19]} Nf6 {[%emt 0:11:08]} 18. Bd2 {[%emt 0:03:43]} Ne4 {[%emt 0:03:22]} 19. Nxe4 {[%emt 0:04:14]} fxe4 {[%emt 0:00:06]} 20. Bxe4 {[%emt 0:02:25]} Qe7 {[%emt 0:01:32]} 21. Bf3 {[%emt 0:03:32]} Bf5 {[%emt 0:03:04]} 22. Qb3 {[%emt 0:05:56]} Qxe2+ {[%emt 0:04:24]} 23. Bxe2 {[%emt 0:00:23]} Rxe2+ {[%emt 0:00:02]} 24. Kg1 {[%emt 0:14:43]} Bd4+ {[%emt 0:05:33]} 25. Rf2 {[%emt 0:04:30]} Bxf2+ {[%emt 0:06:30]} 26. Kg2 {[%emt 0:01:37]} Bd4+ {[%emt 0:04:24]} 0-1

[Event "WTCC-50 2018"]
[Site "Radebeul"]
[Date "2018.07.13"]
[Round "7"]
[White "Schoeneberg, Manfred"]
[Black "Frostick, Clive A"]
[Result "1/2-1/2"]
[ECO "B45"]
[WhiteElo "2199"]
[BlackElo "2133"]
[Annotator "NA"]
[PlyCount "29"]
[EventDate "2018.07.07"]
[EventType "team-tourn"]
[EventCountry "GER"]
[SourceTitle "playchess.com"]
[Source "ChessBase"]
[SourceQuality "1"]
[TimeControl "40/5400+30:1800+30"]

1. e4 {[%emt 0:00:00]} c5 {[%emt 0:01:28]} 2. Nc3 {[%emt 0:01:10]} e6 {[%emt 0:02:14]} 3. Nf3 {[%emt 0:01:09]} Nc6 {[%emt 0:00:38]} 4. d4 {[%emt 0:00:56]} cxd4 {[%emt 0:00:27]} 5. Nxd4 {[%emt 0:00:06]} Nf6 {[%emt 0:00:19]} 6. Be3 {[%emt 0:02:04]} Bb4 {[%emt 0:05:19]} 7. Bd3 {[%emt 0:03:23]} d5 {[%emt 0:06:10]} 8. exd5 {[%emt 0:02:04]} Nxd5 {[%emt 0:08:23]} 9. Nxc6 {[%emt 0:01:37]} bxc6 {[%emt 0:29:22]} 10. Bd2 {[%emt 0:00:45]} Nxc3 {[%emt 0:08:29]} 11. bxc3 {[%emt 0:00:40]} Be7 {[%emt 0:05:38]} 12. Rb1 {[%emt 0:02:22]} e5 {[%emt 0:13:04]} 13. O-O {[%emt 0:11:01]} O-O {[%emt 0:05:26]} 14. Qe2 {[%emt 0:08:53]} Qc7 15. Rfe1 1/2-1/2

[Event "WTCC-50 2018"]
[Site "Radebeul"]
[Date "2018.07.13"]
[Round "7"]
[White "Jhunjhnuwala, Naresh"]
[Black "Schulz, Klaus-Juergen"]
[Result "1/2-1/2"]
[ECO "B40"]
[WhiteElo "2164"]
[BlackElo "2324"]
[Annotator "NA"]
[PlyCount "132"]
[EventDate "2018.07.07"]
[EventType "team-tourn"]
[EventCountry "GER"]
[SourceTitle "playchess.com"]
[Source "ChessBase"]
[SourceQuality "1"]
[TimeControl "40/5400+30:1800+30"]

1. e4 {[%emt 0:00:00]} c5 {[%emt 0:01:49]} 2. Nf3 {[%emt 0:00:08]} e6 {[%emt 0:00:26]} 3. d4 {[%emt 0:00:53]} cxd4 {[%emt 0:00:06]} 4. Nxd4 {[%emt 0:00:05]} Nf6 {[%emt 0:00:06]} 5. Bd3 {[%emt 0:00:27]} Nc6 {[%emt 0:00:36]} 6. c3 {[%emt 0:03:59]} d6 {[%emt 0:42:20]} 7. O-O {[%emt 0:00:20] B40: Sicilian: 2...e6, Unusual lines} Be7 {[%emt 0:00:13]} 8. h3 {[%emt 0:07:08]} (8. f4 O-O 9. Be3 e5 10. Nf5 Bxf5 11. exf5 exf4 12. Bxf4 Qb6+ 13. Kh1 Qxb2 14. Nd2 Qxc3 {0-1 (23) Mudelsee,M (2296)-Abergel,T (2509) Germany 2009}) 8... e5 {[%emt 0:03:33]} 9. Nxc6 {[%emt 0:02:59]} bxc6 {[%emt 0:00:03]} 10. Qe2 $146 {[%emt 0:00:13]} ({Predecessor:} 10. Be3 O-O 11. Nd2 Qc7 12. Qc2 Rb8 13. b3 Be6 14. c4 Nd7 15. Kh1 Bf6 {½-½ (41) Lopez Lazo,A (1760)-Aguilar,J (2274) Ilo Moquegua 2012}) 10... O-O {[%emt 0:05:05]} 11. Rd1 {[%emt 0:02:09]} Qc7 {[%emt 0:01:54]} 12. c4 {[%emt 0:02:12]} Nd7 {[%emt 0:00:45]} 13. Nc3 {[%emt 0:00:32]} Nc5 {[%emt 0:00:08]} 14. Bc2 {[%emt 0:12:12]} Ne6 {[%emt 0:02:13]} 15. Be3 {[%emt 0:00:29]} Bf6 {[%emt 0:00:59]} 16. Qd2 {[%emt 0:05:49]} Nd4 {[%emt 0:02:19]} 17. Bxd4 {[%emt 0:03:04]} exd4 {[%emt 0:00:01]} 18. Ne2 {[%emt 0:00:13]} c5 {[%emt 0:00:02]} 19. Qd3 {[%emt 0:03:42]} g6 {[%emt 0:01:53]} 20. f4 {[%emt 0:01:57]} Bg7 {[%emt 0:00:50]} 21. g4 {[%emt 0:04:54]} Bb7 {[%emt 0:03:15]} 22. Ng3 {[%emt 0:00:46]} Rae8 {[%emt 0:00:15]} 23. Rf1 {[%emt 0:07:36]} Qe7 {[%emt 0:08:08]} 24. Rae1 {[%emt 0:00:24]} Qh4 {[%emt 0:00:38]} 25. Kh2 {[%emt 0:00:49]} Re7 {[%emt 0:02:16]} 26. Re2 {[%emt 0:12:30]} Bc8 {[%emt 0:00:45]} 27. Kg2 {[%emt 0:01:01]} h5 {[%emt 0:00:50]} 28. f5 {[%emt 0:01:12]} hxg4 {[%emt 0:02:30]} 29. hxg4 {[%emt 0:00:14]} Be5 {[%emt 0:00:19]} 30. Qf3 {[%emt 0:00:36]} Bb7 {[%emt 0:06:58]} 31. Rh1 {[%emt 0:06:42]} Qg5 {[%emt 0:04:42]} 32. Nf1 {[%emt 0:04:12]} gxf5 {[%emt 0:04:27]} 33. Qxf5 {[%emt 0:00:15]} Qxf5 {[%emt 0:00:23]} 34. gxf5 {[%emt 0:00:06]} f6 {[%emt 0:00:11]} 35. Kf3 {[%emt 0:01:39]} Rg7 {[%emt 0:00:24]} 36. Rg2 {[%emt 0:04:54]} Rxg2 {[%emt 0:00:40]} 37. Kxg2 {[%emt 0:00:02]} Rf7 {[%emt 0:00:00]} 38. Kf2 {[%emt 0:00:33]} Rg7 {[%emt 0:03:42]} 39. Rg1 {[%emt 0:00:19]} Rxg1 {[%emt 0:01:31]} 40. Kxg1 {[%emt 0:00:02]} Bf4 {[%emt 0:00:11]} 41. Kf2 {[%emt 0:31:58]} Kg7 {[%emt 0:30:25]} 42. Kf3 {[%emt 0:01:35]} Bc1 {[%emt 0:01:05]} 43. b3 {[%emt 0:03:04]} Bc6 {[%emt 0:00:21]} 44. Kg4 {[%emt 0:00:00]} Be8 {[%emt 0:00:00]} 45. Ng3 {[%emt 0:00:00]} Kh6 {[%emt 0:00:00]} 46. Bd3 {[%emt 0:00:00]} Bd2 {[%emt 0:00:00]} 47. e5 {[%emt 0:00:00]} dxe5 {[%emt 0:00:00]} 48. Ne4 {[%emt 0:00:00]} Bh5+ {[%emt 0:00:00]} 49. Kh3 {[%emt 0:00:00]} Bg5 {[%emt 0:00:00]} 50. Nxc5 {[%emt 0:00:00]} Kg7 {[%emt 0:00:00]} (50... Bc1 $11) 51. Ne4 {[%emt 0:00:00]} (51. Ne6+ $16 Kf7 52. c5) 51... Bf3 {[%emt 0:00:50]} 52. b4 {[%emt 0:00:00]} Bxe4 {[%emt 0:01:44]} 53. Bxe4 {[%emt 0:00:00]} Bd2 {[%emt 0:00:48]} 54. a3 {[%emt 0:00:00]} Kf8 $11 {[%emt 0:00:24]} 55. c5 {[%emt 0:00:00]} Ke7 {[%emt 0:01:04]} 56. b5 {[%emt 0:00:00]} Ba5 {[%emt 0:00:22]} 57. Kg4 {[%emt 0:00:00]} Bd8 {[%emt 0:00:50]} 58. Kf3 {[%emt 0:00:00]} Kd7 {[%emt 0:00:16]} 59. Ke2 {[%emt 0:00:00]} Be7 {[%emt 0:00:18]} 60. c6+ {[%emt 0:00:00]} Kc7 {[%emt 0:01:50]} 61. a4 {[%emt 0:00:00]} Bb4 {[%emt 0:00:36]} 62. Kd3 {[%emt 0:00:00]} Ba5 {[%emt 0:00:07]} 63. Kc4 {[%emt 0:00:00]} Kd6 {[%emt 0:00:02]} 64. Bd3 {[%emt 0:03:51]} Be1 {[%emt 0:00:08]} 65. Be4 {[%emt 0:00:57]} Ba5 {[%emt 0:00:06]} 66. Bd3 {[%emt 0:00:41]} Be1 {[%emt 0:00:07] Kxd4 Kd5+} 1/2-1/2

[Event "WTCC-50 2018"]
[Site "Radebeul"]
[Date "2018.07.13"]
[Round "7"]
[White "Limpert, Michael"]
[Black "Schulenburg, Bernd"]
[Result "1-0"]
[ECO "C55"]
[WhiteElo "2159"]
[BlackElo "2152"]
[Annotator "NA"]
[PlyCount "57"]
[EventDate "2018.07.07"]
[EventType "team-tourn"]
[EventCountry "GER"]
[SourceTitle "playchess.com"]
[Source "ChessBase"]
[SourceQuality "1"]
[TimeControl "40/5400+30:1800+30"]

1. e4 {[%emt 0:00:04]} e5 {[%emt 0:00:00]} 2. Nf3 {[%emt 0:00:10]} Nc6 {[%emt 0:00:00]} 3. Bc4 {[%emt 0:00:04]} Bc5 {[%emt 0:00:11]} 4. O-O {[%emt 0:00:07]} Nf6 {[%emt 0:00:33]} 5. d4 {[%emt 0:00:10]} exd4 {[%emt 0:03:19]} 6. e5 {[%emt 0:00:12]} d5 {[%emt 0:00:24]} 7. exf6 {[%emt 0:00:10]} dxc4 {[%emt 0:00:08]} 8. fxg7 {[%emt 0:01:42]} Rg8 {[%emt 0:00:09]} 9. Bg5 {[%emt 0:00:15]} Qd6 {[%emt 0:03:25]} 10. Re1+ {[%emt 0:01:45]} Be6 {[%emt 0:01:01]} 11. Nbd2 {[%emt 0:00:18]} Qd7 {[%emt 0:06:51]} 12. Ne4 {[%emt 0:09:50]} Be7 {[%emt 0:00:08]} 13. Nf6+ {[%emt 0:00:22]} Bxf6 {[%emt 0:00:07]} 14. Bxf6 {[%emt 0:00:03]} b6 {[%emt 0:14:04]} 15. Nxd4 {[%emt 0:08:55]} Nxd4 {[%emt 0:08:06]} 16. Qh5 {[%emt 0:00:38]} Rxg7 {[%emt 0:09:33]} 17. Bxg7 {[%emt 0:05:51]} O-O-O {[%emt 0:00:54]} 18. Bxd4 {[%emt 0:00:09]} Qxd4 {[%emt 0:01:25]} 19. Rad1 {[%emt 0:00:49]} Qxb2 {[%emt 0:01:52]} 20. Rxd8+ {[%emt 0:00:16]} Kxd8 {[%emt 0:00:07]} 21. Qxh7 {[%emt 0:00:15]} b5 {[%emt 0:03:23]} 22. Qe4 {[%emt 0:00:36]} b4 {[%emt 0:01:40]} 23. f4 {[%emt 0:02:33]} c6 {[%emt 0:02:27]} 24. Qxc6 {[%emt 0:25:29]} Qxc2 {[%emt 0:01:11]} 25. Qd6+ {[%emt 0:00:54]} Kc8 {[%emt 0:00:34]} 26. Qxb4 {[%emt 0:02:21]} c3 {[%emt 0:00:20]} 27. Qc5+ {[%emt 0:05:00]} Kb7 {[%emt 0:04:42]} 28. f5 {[%emt 0:02:25]} Qd2 {[%emt 0:02:19]} 29. Rb1+ 1-0